bitfinex/quotes_ETHUSD_20251008
["timestamp","ask_amount","ask_price","bid_price","bid_amount"]
[1759931147344,2.24810035,4448.2,4448.1,0.01]
[1759931147680,3.29931004,4448.2,4448.1,0.01]
[1759931147986,2.622,4448.2,4448.1,0.01]
[1759931148176,0.02809746,4448.8,4448.1,0.01]
[1759931148352,0.02809746,4448.8,4448.2,2.24805152]
[1759931148554,0.02809746,4448.8,4448.1,0.01]
[1759931148770,1.92,4448.6,4448.1,0.01]
[1759931148944,2.622,4448.5,4448.4,2.24797587]
[1759931149145,0.02809493,4449.2,4448.4,0.22579759]
[1759931149364,2.622,4449.1,4448.8,2.24778786]
[1759931149560,2.622,4449.0,4448.6,0.112]
[1759931149796,2.622,4448.9,4448.6,0.112]
[1759931150002,0.14009367,4449.4,4448.6,0.112]
[1759931150182,0.14009367,4449.4,4448.1,0.01]
[1759931150183,1.92,4449.2,4448.1,0.01]
[1759931150388,2.24785031,4448.7,4448.2,0.112]
[1759931150692,2.65409872,4448.6,4448.2,0.112]
[1759931150899,2.65409872,4448.6,4448.1,0.01]
[1759931151099,0.4515,4448.5,4448.1,0.01]
[1759931151402,2.24842573,4447.6,4447.1,0.01]
[1759931151698,0.02810567,4447.5,4447.1,0.01]
[1759931151912,2.327,4448.1,4447.2,2.51019531]
[1759931152110,2.327,4448.2,4447.8,2.24828467]
[1759931152400,0.02809809,4448.7,4447.2,2.24860586]
[1759931152568,0.02809809,4448.7,4447.1,7.81]
[1759931152569,0.02809115,4449.8,4447.4,2.24850474]
[1759931152772,0.02809115,4449.8,4448.7,2.24782211]
[1759931152970,0.02809115,4449.8,4447.7,2.626]
[1759931153165,71.0,4450.0,4447.8,2.65116624]
[1759931153473,71.0,4450.0,4449.9,2.24724151]
[1759931154119,71.0,4450.0,4449.9,2.23724151]
[1759931154411,71.0,4450.0,4449.9,2.94729982]
[1759931154619,71.0,4450.0,4449.1,0.2616]
[1759931154907,1.92,4449.8,4448.2,0.2616]
[1759931155068,0.02809178,4449.7,4448.7,2.24779956]
[1759931155265,0.02809178,4449.7,4446.9,0.1413]
[1759931155266,0.6336,4449.6,4446.9,0.1413]
[1759931155587,1.92,4449.4,4447.4,2.24850306]
[1759931155786,2.24803669,4448.4,4447.3,2.24850769]
[1759931156003,2.02120438,4449.3,4447.1,7.81]
[1759931156004,1.92,4448.2,4447.1,7.81]
[1759931156198,0.02810188,4448.1,4447.5,2.24843786]
[1759931156402,0.02810188,4448.1,4446.6,2.51049841]
[1759931156403,2.24869119,4447.1,4443.1,2.26067842]
[1759931156703,2.24869119,4447.1,4443.9,0.78305785]
[1759931156704,0.59044018,4445.9,4443.9,0.78305785]
[1759931156917,2.71860617,4446.2,4444.1,0.2946]
[1759931156918,0.50049028,4445.8,4444.1,0.2946]
[1759931157069,0.02811642,4445.8,4444.1,0.2946]
[1759931157274,1.926,4445.9,4444.2,2.629]
[1759931157474,1.926,4445.9,4444.3,0.57696]
[1759931157673,2.25,4446.2,4445.4,2.24949965]
[1759931157890,2.629,4446.3,4444.8,0.2846]
[1759931158204,0.02811389,4446.2,4444.8,0.2846]
[1759931158407,0.02811389,4446.2,4444.9,2.2497357]
[1759931158571,0.02811073,4446.7,4445.9,2.24924917]
[1759931158766,0.02811073,4446.7,4445.0,2.50313305]
[1759931158767,0.02811073,4446.7,4446.4,2.24896214]
[1759931159009,0.02810694,4447.3,4445.3,2.9136]
[1759931159173,0.0092,4446.9,4445.3,0.2846]
[1759931159506,0.0092,4446.9,4446.7,2.24883306]
[1759931159672,0.0092,4446.9,4446.2,2.39039625]
[1759931159872,0.0092,4446.9,4446.7,2.2488134]
[1759931160073,0.0092,4446.9,4446.3,0.23903962]
[1759931160293,0.0092,4446.9,4446.7,2.24885376]
[1759931160571,0.59044018,4448.6,4446.4,0.2846]
[1759931160572,0.02809746,4448.8,4446.8,2.629]
[1759931160778,2.0622611,4449.4,4447.5,7.8]
[1759931161018,0.99999999,4448.8,4448.6,0.112]
[1759931161231,0.02809809,4448.7,4447.6,0.78]
[1759931161503,0.14715062,4449.5,4447.6,0.78]
[1759931161504,0.02809304,4449.5,4448.7,0.112]
[1759931161690,0.02809304,4449.5,4449.0,0.112]
[1759931162114,0.1856,4449.7,4448.0,10.12]
[1759931162115,0.99999999,4449.2,4448.0,10.12]
[1759931162294,0.99999999,4449.2,4449.0,2.24769611]
[1759931162472,0.0736,4449.7,4449.1,0.112]
[1759931162677,0.0736,4449.7,4449.4,0.112]
[1759931162886,0.0736,4449.7,4449.6,2.24739302]
[1759931163497,0.0736,4449.7,4448.6,2.628]
[1759931163699,0.0736,4449.7,4448.8,7.8]
[1759931163899,0.0736,4449.7,4445.1,0.46257158]
[1759931163900,3.32537044,4449.7,4446.2,2.2491116]
[1759931164102,0.99999999,4448.2,4446.2,2.2491116]
[1759931164311,0.99999999,4447.9,4446.2,2.2491116]
[1759931164511,0.99999999,4447.6,4446.3,7.8]
[1759931164718,0.02810567,4447.5,4446.4,0.781]
[1759931164918,0.99999999,4447.6,4446.4,0.781]
[1759931165321,0.79860617,4449.1,4446.4,0.781]
[1759931165322,0.99999999,4448.1,4446.4,0.781]
[1759931165531,0.61853827,4448.7,4446.4,2.701]
[1759931165532,0.59044018,4448.7,4446.4,2.701]
[1759931165831,0.99999999,4448.4,4448.3,2.24804981]
[1759931166008,0.99999999,4448.4,4447.0,2.24870699]
[1759931166210,0.99999999,4448.4,4447.6,7.8]
[1759931166435,0.99999999,4448.7,4447.6,7.8]
[1759931166638,0.99999999,4448.7,4448.6,2.24789821]
[1759931166827,0.01,4448.9,4448.8,2.24779715]
[1759931167114,1.00999999,4448.9,4448.8,2.24779715]
[1759931167481,0.01,4448.9,4447.6,7.8]
[1759931167686,0.01,4448.9,4448.0,2.24818937]
[1759931167916,0.01,4448.9,4447.6,7.8]
[1759931167917,0.99999999,4448.6,4447.6,7.8]
[1759931168129,0.99999999,4448.6,4447.7,2.24835308]
[1759931168331,0.02809935,4448.5,4447.6,7.8]
[1759931168698,0.49999999,4448.1,4447.8,2.24825649]
[1759931169118,0.4672,4448.0,4447.1,7.8]
[1759931169344,0.49999999,4448.1,4447.6,2.24839151]
[1759931169345,0.49999999,4447.8,4447.6,2.24839151]
[1759931169531,0.49999999,4447.8,4446.5,1.2421]
[1759931169834,0.49999999,4447.8,4447.7,2.24835308]
[1759931170125,0.49999999,4447.8,4446.6,10.43]
[1759931170327,0.49999999,4447.8,4447.5,2.24843137]
[1759931170528,0.49999999,4447.8,4446.6,10.43]
[1759931170529,0.49999999,4447.8,4446.6,7.8]
[1759931170933,0.49999999,4447.2,4446.7,2.2488587]
[1759931171225,0.49999999,4447.2,4446.6,7.8]
[1759931171799,0.49999999,4447.2,4446.3,2.24904066]
[1759931172029,0.49999999,4447.2,4446.7,2.24885537]
[1759931172198,1.92,4448.5,4447.1,2.24865642]
[1759931172394,0.49999999,4447.1,4446.3,0.48880407]
[1759931172626,2.27635955,4447.9,4446.4,4.87701043]
[1759931172627,0.02810313,4447.9,4446.4,4.87701043]
[1759931172827,0.14010313,4447.9,4447.2,2.24860491]
[1759931173020,0.112,4448.2,4447.5,0.112]
[1759931173223,0.112,4448.2,4447.6,2.24840363]
[1759931173422,0.02809998,4448.4,4447.0,2.627]
[1759931173633,0.002,4449.8,4447.1,0.2627]
[1759931173801,2.629,4449.8,4447.1,0.2627]
[1759931174007,2.24765403,4449.1,4448.2,2.24809332]
[1759931174221,0.0280943,4449.3,4448.0,2.627]
[1759931174532,0.02809241,4449.6,4448.3,2.24804981]
[1759931174719,0.02809241,4449.6,4448.3,2.627]
[1759931175100,0.02809241,4449.6,4448.8,2.24779715]
[1759931175530,0.02809241,4449.6,4448.8,10.04779715]
[1759931175942,2.626,4449.3,4446.4,2.24901043]
[1759931176146,0.02803058,4449.2,4446.5,4.81978145]
[1759931176314,0.0736,4449.7,4447.0,0.6336]
[1759931176642,0.0736,4449.7,4448.8,2.24779715]
[1759931177245,0.0736,4449.7,4448.8,7.8]
[1759931177444,2.24770001,4449.0,4446.5,0.27378145]
[1759931177740,0.22577,4448.8,4446.4,2.24901043]
[1759931177942,0.02809809,4448.7,4447.7,7.8]
[1759931178150,0.01,4448.9,4448.1,2.24814745]
[1759931178320,2.25775076,4448.9,4447.8,2.24830253]
[1759931178644,2.25775076,4448.9,4448.1,2.24814765]
[1759931178645,0.02809746,4448.8,4448.1,2.24814765]
[1759931178842,0.02809746,4448.8,4448.0,2.24820022]
[1759931179153,0.02809746,4448.8,4447.7,7.8]
[1759931179154,0.02809746,4448.8,4448.5,2.24789902]
[1759931179463,0.01,4448.9,4447.7,7.8]
[1759931179464,0.03809683,4448.9,4447.7,7.8]
[1759931179618,0.01,4448.9,4447.7,7.8]
[1759931180238,0.01,4448.9,4448.8,2.24779715]
[1759931180560,0.01,4448.9,4448.3,4.87103497]
[1759931180720,0.01,4448.9,4447.8,1.0048332]
[1759931181045,0.01,4448.9,4447.9,2.623]
[1759931181349,0.01,4448.9,4448.8,2.24779715]
[1759931181554,0.01,4448.9,4448.8,4.87079715]
[1759931181715,0.01,4448.9,4448.8,5.58266386]
[1759931181916,1e-08,4448.9,4448.8,13.38266386]
[1759931182339,0.0736,4449.7,4448.8,13.38266386]
[1759931182340,0.07280001,4449.7,4448.8,8.51186671]
[1759931182663,0.07280001,4449.7,4449.0,2.24769611]
[1759931182881,0.07280001,4449.7,4448.8,8.51186671]
[1759931182882,0.07280001,4449.7,4449.6,2.24739302]
[1759931183019,0.07280001,4449.7,4449.3,2.622]
[1759931183251,0.07280001,4449.7,4449.6,2.24739302]
[1759931183597,0.07280001,4449.7,4449.4,2.24749404]
[1759931183805,0.07280001,4449.7,4449.6,2.35939302]
[1759931184596,0.07280001,4449.7,4449.6,3.08228173]
[1759931185060,0.07280001,4449.7,4449.6,10.88228173]
[1759931185746,0.07280001,4449.7,4449.6,13.50328173]
[1759931186155,0.002,4449.8,4449.7,2.24734251]
[1759931187369,0.01,4450.9,4450.2,2.24709001]
[1759931187567,0.01,4450.9,4450.2,5.31551543]
[1759931187782,0.01,4450.9,4450.2,5.42751543]
[1759931187977,0.01,4450.9,4450.2,15.14751543]
[1759931188180,0.01,4452.9,4450.3,1.92]
[1759931188379,0.03807159,4452.9,4450.4,2.24698903]
[1759931188559,0.03807159,4452.9,4450.5,2.88864144]
[1759931188956,0.03807159,4452.9,4451.1,7.8]
[1759931189353,0.443,4452.3,4451.1,7.8]
[1759931189557,0.71467853,4451.8,4449.6,0.72288871]
[1759931189758,0.71467853,4451.8,4448.2,2.24807392]
[1759931189759,1.92,4451.5,4447.3,12.16096496]
[1759931189972,2.24684891,4450.7,4449.5,2.24740347]
[1759931190192,0.0280861,4450.6,4449.3,2.24754455]
[1759931190395,0.0280861,4450.6,4449.2,7.8]
[1759931190396,2.6460861,4450.6,4449.2,7.8]
[1759931190687,0.26460861,4450.5,4449.2,7.8]
[1759931190892,2.24703952,4450.3,4449.2,7.8]
[1759931191056,0.02808862,4450.2,4449.1,0.01]
[1759931191260,0.6336,4450.3,4449.1,0.01]
[1759931191593,0.6336,4450.0,4449.1,0.01]
[1759931191794,3.09689507,4449.2,4449.1,0.01]
[1759931191962,0.56253617,4449.2,4449.1,0.01]
[1759931192164,2.3599,4449.9,4449.1,0.01]
[1759931192165,0.02809115,4449.8,4449.1,0.01]
[1759931192490,1.92,4449.6,4449.1,0.01]
[1759931192690,0.02809304,4449.5,4449.1,0.01]
[1759931192909,0.02808736,4450.4,4449.1,0.01]
[1759931193059,0.02808736,4450.4,4449.4,2.24745078]
[1759931193261,0.02808294,4451.1,4449.5,2.84174508]
[1759931193467,2.64508294,4451.1,4449.8,2.24725666]
[1759931193688,2.64508294,4451.1,4449.6,10.417]
[1759931194475,2.617,4451.1,4449.6,10.417]
[1759931194697,0.02808357,4451.0,4450.2,2.24704658]
[1759931194897,1.92,4451.8,4449.6,10.417]
[1759931194898,0.02807916,4451.7,4450.3,2.84170466]
[1759931195595,0.02807853,4451.8,4450.3,2.84170466]
[1759931195797,0.002,4451.1,4450.3,2.84170466]
[1759931196103,0.002,4451.1,4450.4,7.8]
[1759931196481,0.002,4451.1,4449.5,0.22474508]
[1759931196697,2.24698003,4450.5,4448.2,1.92]
[1759931196906,3.0569,4451.1,4446.5,12.16096496]
[1759931196907,2.2750847,4450.4,4449.3,2.2475441]
[1759931197071,0.02808736,4450.4,4449.3,10.0475441]
[1759931197273,0.02808736,4450.4,4449.2,0.222]
[1759931197596,0.4399,4450.4,4447.3,1.92]
[1759931197801,2.24721518,4450.0,4448.5,0.228]
[1759931197965,0.02809051,4449.9,4448.7,2.24782965]
[1759931198206,0.112,4450.1,4449.4,0.112]
[1759931198405,0.02808799,4450.3,4448.5,0.228]
[1759931198738,0.112,4450.5,4449.7,0.112]
[1759931198914,0.02808736,4450.4,4449.7,0.112]
[1759931199457,2.24714275,4450.1,4449.4,0.112]
[1759931199734,2.64408988,4450.0,4449.4,0.112]
[1759931199912,0.112,4449.6,4449.1,0.01]
[1759931200544,2.728,4450.0,4449.3,0.112]
[1759931201022,0.02808799,4450.3,4449.3,0.23695943]
[1759931201236,0.112,4450.3,4449.8,2.24726899]
[1759931201558,0.03008294,4451.1,4450.5,2.24693842]
[1759931201857,0.002,4451.1,4450.8,0.112]
[1759931202142,0.002,4451.1,4451.0,2.24668613]
[1759931202537,0.002,4451.1,4451.0,2.47135474]
[1759931202706,0.002,4451.1,4451.0,10.27135474]
[1759931203639,0.002,4451.1,4451.0,12.88635474]
[1759931205308,0.0012,4451.1,4451.0,12.88635474]
[1759931206667,0.0012,4451.1,4451.0,10.27135474]
[1759931206848,0.0012,4451.1,4451.0,12.88435474]
[1759931207178,0.01,4451.9,4451.3,0.6336]
[1759931207179,1e-08,4451.9,4451.3,0.6336]
[1759931207357,1e-08,4451.9,4451.6,2.24635809]
[1759931207678,1e-08,4451.9,4451.8,2.2462824]
[1759931207855,1e-08,4451.9,4451.8,10.0462824]
[1759931208053,1e-08,4451.9,4451.8,12.6582824]
[1759931208254,1e-08,4451.9,4451.8,14.34074645]
[1759931209872,1e-08,4451.9,4451.8,16.26074645]
[1759931210282,1e-08,4451.9,4451.8,16.89434645]
[1759931210875,1e-08,4452.9,4451.8,16.89434645]
[1759931211186,1e-08,4452.9,4452.8,2.24577793]
[1759931211350,1e-08,4452.9,4452.8,5.30594102]
[1759931211550,1e-08,4452.9,4452.8,10.49494102]
[1759931211750,1e-08,4452.9,4452.8,15.02594102]
[1759931212181,1e-08,4452.9,4452.8,15.13794102]
[1759931212782,1e-08,4452.9,4452.8,15.77154102]
[1759931213372,0.002,4454.3,4454.2,2.24507206]
[1759931213691,0.002,4454.3,4454.2,5.3040943]
[1759931213871,0.002,4454.3,4454.2,5.2476943]
[1759931214071,0.002,4454.3,4454.2,13.0476943]
[1759931214266,0.002,4454.3,4454.2,15.0240943]
[1759931214916,0.002,4454.3,4454.2,12.4140943]
[1759931215118,0.002,4454.3,4454.2,15.0240943]
[1759931216075,0.002,4454.3,4454.2,12.4140943]
[1759931216277,0.002,4454.3,4454.2,15.0240943]
[1759931216473,1e-08,4454.9,4454.4,0.6336]
[1759931216693,1e-08,4454.9,4454.8,2.24476968]
[1759931216896,1e-08,4454.9,4454.8,6.77376968]
[1759931217223,1e-08,4454.9,4454.8,7.40736968]
[1759931217373,1e-08,4454.9,4454.8,11.96476968]
[1759931217574,1e-08,4454.9,4454.8,14.57276968]
[1759931217776,1e-08,4454.9,4454.8,16.25523373]
[1759931218774,1e-08,4454.9,4454.8,13.64723373]
[1759931219107,1e-08,4454.9,4454.8,17.69523373]
[1759931219700,1e-08,4454.9,4454.8,17.69423373]
[1759931220473,1e-08,4454.9,4454.8,15.08723373]
[1759931220673,1e-08,4454.9,4454.8,17.69323373]
[1759931221088,1e-08,4454.9,4454.8,18.77484502]
[1759931221289,1e-08,4455.9,4454.9,2.5536]
[1759931221486,1e-08,4455.9,4455.8,2.8778659]
[1759931221691,1e-08,4455.9,4455.8,7.4038659]
[1759931221919,1e-08,4455.9,4455.8,29.11511803]
[1759931222121,1e-08,4455.9,4455.8,12.5978659]
[1759931222434,1e-08,4455.9,4455.8,9.72]
[1759931222590,1e-08,4455.9,4455.8,12.6512659]
[1759931223302,1e-08,4455.9,4455.8,12.7632659]
[1759931223499,1e-08,4455.9,4455.8,11.65702859]
[1759931223701,1e-08,4455.9,4455.8,7.912]
[1759931223901,1e-08,4455.9,4455.8,0.112]
[1759931224108,1e-08,4455.9,4455.8,2.607]
[1759931224294,1e-08,4455.9,4455.8,10.407]
[1759931224497,1e-08,4455.9,4455.8,2.607]
[1759931224809,1e-08,4455.9,4455.0,2.2446617]
[1759931224810,1e-08,4455.9,4455.0,2.24463185]
[1759931225012,1e-08,4455.9,4455.1,9.932]
[1759931225332,1e-08,4455.9,4455.2,1.21766521]
[1759931225489,1e-08,4455.9,4455.5,2.24441701]
[1759931225695,1e-08,4455.9,4455.6,2.607]
[1759931225923,1e-08,4455.9,4455.6,4.85133851]
[1759931226117,1e-08,4455.9,4455.6,2.607]
[1759931226631,1e-08,4455.9,4455.2,1.21766521]
[1759931226831,1e-08,4455.9,4455.3,2.606]
[1759931227028,2.24425856,4455.9,4455.3,2.606]
[1759931227208,1e-08,4455.9,4455.3,2.606]
[1759931227524,1e-08,4455.9,4455.5,2.24440669]
[1759931227745,1e-08,4455.9,4455.6,2.605]
[1759931227901,1e-08,4455.9,4455.1,2.24457557]
[1759931228098,1e-08,4455.9,4455.2,2.605]
[1759931228325,1e-08,4455.9,4455.3,2.605]
[1759931228531,1e-08,4455.9,4455.8,2.2442659]
[1759931228738,1e-08,4455.9,4455.8,2.605]
[1759931228933,1e-08,4455.9,4452.2,2.24607094]
[1759931228934,0.49304892,4456.5,4453.2,2.24557621]
[1759931229219,0.49304892,4456.5,4453.1,0.01]
[1759931229220,0.02804954,4456.4,4454.4,7.8]
[1759931229459,0.02804954,4456.4,4453.1,0.01]
[1759931229460,2.24450706,4455.4,4454.5,2.606]
[1759931229752,0.02805647,4455.3,4454.4,2.605]
[1759931229919,0.0280508,4456.2,4454.5,2.24490507]
[1759931230113,2.24442261,4455.5,4454.4,4.84995913]
[1759931230340,0.02805584,4455.4,4454.5,2.605]
[1759931230544,0.02805143,4456.1,4454.6,2.8655]
[1759931230848,2.605,4456.8,4454.7,2.605]
[1759931230849,0.02804828,4456.6,4454.7,2.605]
[1759931231047,0.02804828,4456.6,4455.1,2.24459632]
[1759931231224,0.02804828,4456.6,4454.6,0.2605]
[1759931231225,2.24448514,4455.4,4453.1,2.25559717]
[1759931231425,2.24430431,4455.8,4453.2,2.83055972]
[1759931231647,2.24446872,4455.4,4454.1,0.01]
[1759931231848,2.24446872,4455.4,4454.4,2.24496876]
[1759931232053,2.27244411,4455.6,4454.1,0.01]
[1759931232242,0.25529962,4455.5,4454.1,0.01]
[1759931232443,0.4658,4455.4,4454.1,0.01]
[1759931232633,13.91125213,4454.9,4454.1,0.01]
[1759931232833,2.24507206,4454.2,4454.1,0.01]
[1759931233034,2.605,4455.1,4454.1,0.01]
[1759931233243,0.98551836,4455.0,4454.1,0.01]
[1759931233445,2.24506273,4454.3,4454.1,0.01]
[1759931233754,3.23020865,4455.0,4454.1,0.01]
[1759931233755,0.02805899,4454.9,4454.1,0.01]
[1759931234270,0.14005899,4454.9,4454.1,0.122]
[1759931234419,2.24486972,4454.7,4454.1,0.122]
[1759931234615,2.27293927,4454.6,4454.1,0.122]
[1759931234848,0.02806088,4454.6,4454.1,0.122]
[1759931235231,0.112,4455.2,4454.4,0.112]
[1759931235628,0.112,4455.5,4454.8,0.112]
[1759931235873,0.03005458,4455.6,4455.1,0.112]
[1759931236055,0.02805584,4455.4,4454.9,0.112]
[1759931236394,0.114,4455.6,4454.9,0.112]
[1759931236592,2.35838858,4455.6,4454.9,0.112]
[1759931236749,0.02805521,4455.5,4454.2,7.8]
[1759931237084,0.002,4455.6,4454.2,7.8]
[1759931237085,0.112,4454.9,4454.2,0.112]
[1759931237983,2.24502166,4454.3,4454.1,0.01]
[1759931238156,2.72213096,4454.2,4454.1,0.01]
[1759931238565,2.24471929,4454.9,4454.1,0.01]
[1759931238566,0.59142281,4455.1,4454.1,0.01]
[1759931238771,2.27273691,4455.0,4454.1,0.01]
[1759931239089,0.02805836,4455.0,4454.1,0.01]
[1759931239385,0.112,4455.1,4454.4,0.112]
[1759931239688,0.112,4455.3,4454.5,0.112]
[1759931239862,2.24445851,4455.5,4455.0,0.112]
[1759931240062,0.002,4455.6,4455.0,0.112]
[1759931240063,0.02805584,4455.4,4455.0,0.112]
[1759931240264,0.002,4455.6,4455.0,0.112]
[1759931240587,0.002,4455.6,4454.5,0.112]
[1759931240588,2.24471076,4455.0,4454.5,0.112]
[1759931240788,2.24483346,4454.7,4454.1,0.01]
[1759931240990,4.524,4455.4,4454.3,0.112]
[1759931240991,0.02806088,4454.6,4454.3,0.112]
[1759931241294,2.24486507,4454.7,4454.3,0.112]
[1759931241495,0.02806088,4454.6,4454.3,0.112]
[1759931241676,2.27297823,4454.6,4454.3,0.112]
[1759931241876,0.02806088,4454.6,4454.3,0.112]
[1759931242065,0.112,4455.0,4454.3,0.112]
[1759931242394,0.0280571,4455.2,4454.5,0.112]
[1759931242573,2.24466816,4455.1,4454.5,0.112]
[1759931242772,0.0280571,4455.2,4454.5,0.112]
[1759931243280,0.002,4455.6,4454.1,0.01]
[1759931243502,2.2444213,4455.5,4455.0,0.112]
[1759931243700,0.02805584,4455.4,4454.1,0.23552296]
[1759931243900,0.112,4455.4,4454.7,0.112]
[1759931244208,2.24455935,4455.3,4455.0,0.112]
[1759931244521,2.24455935,4455.3,4454.1,0.23552296]
[1759931244522,0.0280571,4455.2,4454.8,0.112]
[1759931244816,2.35645762,4455.5,4454.8,0.112]
[1759931244817,2.27252588,4455.4,4454.8,0.112]
[1759931245173,0.02805584,4455.4,4454.8,0.112]
[1759931245373,2.35643039,4455.5,4454.8,0.112]
[1759931245597,0.002,4455.6,4455.0,2.24462845]
[1759931245810,0.002,4455.6,4455.3,0.112]
[1759931246008,0.002,4455.6,4454.3,2.351]
[1759931246304,0.002,4455.6,4455.0,0.112]
[1759931246503,0.002,4455.6,4454.3,2.351]
[1759931246708,0.002,4455.6,4455.5,0.112]
[1759931248317,0.002,4455.6,4455.5,2.35641701]
[1759931248523,0.002,4455.6,4455.5,0.112]
[1759931248730,2.24636663,4455.6,4455.5,0.112]
[1759931249030,2.24640524,4455.6,4455.0,0.112]
[1759931249234,0.002,4455.6,4455.0,0.112]
[1759931249398,0.002,4455.6,4454.4,2.443]
[1759931249399,0.002,4455.6,4455.3,0.112]
[1759931250724,0.002,4455.6,4455.5,2.24441701]
[1759931250940,0.002,4455.6,4455.5,5.07485871]
[1759931251244,0.002,4455.6,4455.5,6.99485871]
[1759931251534,0.0012,4455.6,4455.5,2.46885871]
[1759931251733,0.0012,4455.6,4455.5,5.07485871]
[1759931252135,0.0012,4455.6,4455.5,2.8304417]
[1759931252336,0.0012,4455.6,4455.5,5.07485871]
[1759931252739,0.0012,4455.6,4455.5,6.99485871]
[1759931252939,0.0012,4455.6,4455.5,7.62845871]
[1759931253237,0.0012,4455.6,4455.5,7.62945871]
[1759931253641,1e-08,4455.9,4455.7,0.6336]
[1759931253830,1e-08,4455.9,4455.8,5.59173007]
[1759931255732,0.01,4456.9,4455.8,5.59173007]
[1759931255733,1e-08,4456.9,4456.8,2.24376234]
[1759931255913,1e-08,4456.9,4456.8,7.40236234]
[1759931256918,1e-08,4456.9,4456.8,7.85694739]
[1759931258147,0.01,4457.9,4456.8,7.85694739]
[1759931258148,1e-08,4457.9,4457.8,2.876859]
[1759931258484,1e-08,4457.9,4457.8,8.10487826]
[1759931259255,1e-08,4458.5,4458.4,2.87655711]
[1759931259457,1e-08,4458.5,4458.4,7.39955711]
[1759931261065,1e-08,4458.5,4458.4,7.51155711]
[1759931262274,1e-08,4458.5,4458.4,7.39955711]
[1759931262493,0.01,4459.9,4459.8,2.24225301]
[1759931262787,0.01,4459.9,4459.8,4.84325301]
[1759931263153,0.01,4459.9,4459.8,6.76325301]
[1759931263359,0.01,4459.9,4459.8,7.39685301]
[1759931263558,0.01,4460.9,4459.9,4.79580273]
[1759931263797,0.01,4460.9,4459.9,5.75972102]
[1759931265662,0.01,4460.9,4459.9,8.36072102]
[1759931266470,0.01,4460.9,4459.9,5.75972102]
[1759931266693,0.01,4460.9,4459.9,8.36072102]
[1759931267693,0.01,4460.9,4459.9,8.35972102]
[1759931268680,0.01,4460.9,4459.9,5.75972102]
[1759931268895,0.01,4460.9,4459.9,8.35972102]
[1759931269091,0.01,4460.9,4459.9,5.75972102]
[1759931269297,0.01,4460.9,4459.9,8.35972102]
[1759931269482,0.01,4460.9,4459.9,5.12612102]
[1759931269668,0.01,4460.9,4458.4,3.20720044]
[1759931270000,0.01,4460.9,4459.9,2.24220273]
[1759931270217,2.24181352,4460.7,4459.9,2.6]
[1759931270399,2.2418626,4460.6,4459.9,2.6]
[1759931270705,0.01,4460.9,4459.9,2.6]
[1759931270917,0.01,4460.9,4458.1,13.92125213]
[1759931270918,0.01,4460.9,4458.3,2.24297284]
[1759931271206,0.01,4460.9,4459.7,2.242257]
[1759931271408,0.01,4460.9,4459.8,2.6]
[1759931271605,0.03802125,4460.9,4459.9,2.6]
[1759931271908,0.01,4460.9,4459.9,2.6]
[1759931272116,0.01,4460.9,4459.9,4.84220273]
[1759931272416,0.01,4460.9,4459.9,4.95420273]
[1759931272618,2.2517221,4460.9,4459.9,2.712]
[1759931272785,2.24180431,4460.7,4459.9,2.712]
[1759931273112,0.01,4460.9,4459.9,2.712]
[1759931273276,0.002,4460.5,4459.9,2.712]
[1759931273488,0.002,4460.5,4459.9,4.95420273]
[1759931273895,0.002,4460.5,4455.6,0.11202729]
[1759931274208,0.002,4460.5,4458.3,2.24300742]
[1759931274529,0.002,4460.5,4458.2,2.6]
[1759931274530,0.0012,4460.0,4459.9,2.24220273]
[1759931274831,0.0012,4460.0,4459.9,4.84220273]
[1759931274994,0.0012,4460.0,4459.9,5.47580273]
[1759931275191,0.0012,4460.0,4459.9,7.39580273]
[1759931275887,0.0012,4460.0,4458.5,1.92]
[1759931276091,0.0012,4460.0,4459.9,2.24220273]
[1759931276313,0.0012,4460.0,4459.9,4.84220273]
[1759931276595,0.0012,4460.0,4459.9,6.76220273]
[1759931277415,0.0012,4460.0,4459.9,7.39580273]
[1759931277828,0.0012,4460.0,4459.9,4.79580273]
[1759931278153,0.4735,4460.0,4459.2,2.6]
[1759931278349,0.2192,4459.9,4459.2,2.6]
[1759931279140,0.2192,4459.9,4459.2,4.842535]
[1759931279445,0.4735,4460.0,4459.4,2.24241463]
[1759931279623,0.0012,4460.0,4459.5,2.6]
[1759931279825,0.2192,4459.6,4456.8,2.24373479]
[1759931280025,0.4723,4459.5,4458.2,2.6]
[1759931280236,0.0012,4460.0,4458.3,0.261]
[1759931280549,0.0012,4460.0,4458.6,1.92]
[1759931280749,0.0012,4460.0,4459.9,2.24220273]
[1759931280978,0.0012,4460.0,4458.8,1.92]
[1759931281152,0.0012,4460.0,4458.3,0.261]
[1759931281153,0.2192,4459.9,4458.9,2.4347037]
[1759931281451,0.2192,4459.9,4459.0,2.601]
[1759931282021,0.2192,4459.9,4459.6,2.24235244]
[1759931282220,0.2192,4459.9,4458.9,0.192]
[1759931282221,0.2192,4459.9,4459.7,2.601]
[1759931282436,0.4723,4459.8,4458.9,2.43470362]
[1759931282635,0.4723,4459.8,4459.5,2.24238336]
[1759931282974,0.2192,4459.9,4459.0,0.24347036]
[1759931283262,0.4223,4459.7,4459.2,2.24253369]
[1759931283470,0.2192,4459.9,4459.3,2.6]
[1759931283764,0.2192,4459.9,4459.4,2.6]
[1759931283985,0.2192,4459.9,4459.8,0.112]
[1759931285228,0.0012,4460.0,4459.9,2.24220273]
[1759931285431,0.0012,4460.0,4459.9,2.477623]
[1759931286153,0.0012,4460.0,4459.9,5.077623]
[1759931286357,0.0012,4460.0,4459.8,0.112]